fUST/lending_fUST_20260210
["ID","MTS","AMOUNT","RATE_DAILY","PERIOD"]
[404910750,1770672546234,-192.0,0.00031058,3]
[404910751,1770672546258,-231.0,0.00031059,2]
[404910752,1770672546284,-258.0,0.00033059,120]
[404910753,1770672560159,3629.14382689,0.00024953,2]
[404910791,1770672632040,-295.00936644,0.00036619,2]
[404910793,1770672632049,-197.42535756,0.00038546,2]
[404911196,1770672638057,-146.9736323,0.00038546,2]
[404911198,1770672638067,-354.44684769,0.00038546,2]
[404911200,1770672638076,-201.75548633,0.00038546,2]
[404911211,1770672638169,-157.04958608,0.00038546,2]
[404911213,1770672638178,-650.02727789,0.00038546,2]
[404911215,1770672638187,-711.0,0.0003857,11]
[404911217,1770672638197,-187.131378,0.00039772,2]
[404911219,1770672638206,-3566.99412288,0.000399,2]
[404911221,1770672638215,-250.0,0.000399,10]
[404911223,1770672638227,-151.0,0.0003999,120]
[404911225,1770672638236,-246.360558,0.0003999,120]
[404911227,1770672638246,-246.360558,0.0003999,120]
[404911229,1770672638255,-246.360558,0.0003999,120]
[404911231,1770672638265,-246.360558,0.0003999,120]
[404911233,1770672638274,-259.8,0.0003999,120]
[404911235,1770672638284,-259.8,0.0003999,120]
[404911237,1770672638297,-259.8,0.0003999,120]
[404911239,1770672638306,-151.0,0.0003999,120]
[404911241,1770672638316,-259.8,0.0003999,120]
[404911242,1770672638325,-68.53578268,0.0003999,120]
[404911430,1770672640312,-82.46421732,0.0003999,120]
[404911433,1770672640322,-151.0,0.0003999,120]
[404911435,1770672640335,-215.671761,0.0003999,120]
[404911437,1770672640345,-151.0,0.0003999,10]
[404911438,1770672640355,-130.92138154,0.0003999,120]
[404911889,1770672644911,-20.07861846,0.0003999,120]
[404911891,1770672644920,-151.0,0.0003999,120]
[404911894,1770672644931,-151.0,0.0003999,120]
[404911895,1770672644940,-151.0,0.0003999,120]
[404911898,1770672644950,-154.337183,0.0003999,120]
[404911899,1770672644959,-151.0,0.0003999,120]
[404911902,1770672644968,-162.53596,0.0003999,120]
[404911904,1770672644978,-59.04823854,0.0003999,120]
[404911906,1770672644990,-91.95176146,0.0003999,120]
[404911907,1770672644999,-151.0,0.0003999,120]
[404911909,1770672645009,-151.0,0.0003999,120]
[404911911,1770672645019,-151.0,0.0003999,120]
[404911914,1770672645029,-151.0,0.0003999,120]
[404911915,1770672645038,-151.0,0.0003999,120]
[404911917,1770672645048,-151.0,0.0003999,120]
[404911920,1770672645058,-151.0,0.0003999,7]
[404911921,1770672645067,-151.0,0.0003999,7]
[404911924,1770672645079,-151.0,0.0003999,7]
[404911926,1770672645089,-151.0,0.0003999,120]
[404911928,1770672645098,-175.138676,0.0003999,120]
[404911930,1770672645107,-151.0,0.0003999,120]
[404911932,1770672645116,-151.0,0.0003999,120]
[404911934,1770672645126,-151.0,0.0003999,120]
[404911936,1770672645137,-151.0,0.0003999,7]
[404911938,1770672645146,-151.0,0.0003999,7]
[404911940,1770672645156,-151.0,0.0003999,7]
[404911942,1770672645166,-151.0,0.0003999,120]
[404911944,1770672645175,-151.0,0.0003999,120]
[404911946,1770672645185,-230.23096,0.0003999,120]
[404911948,1770672645195,-230.23096,0.0003999,120]
[404911950,1770672645205,-230.23096,0.0003999,120]
[404911952,1770672645215,-230.23096,0.0003999,120]
[404911954,1770672645224,-230.23096,0.0003999,120]
[404911956,1770672645234,-230.23096,0.0003999,120]
[404911958,1770672645244,-230.23096,0.0003999,120]
[404911960,1770672645254,-230.23096,0.0003999,120]
[404911962,1770672645271,-230.23096,0.0003999,120]
[404911964,1770672645281,-151.0,0.0003999,120]
[404911966,1770672645290,-151.0,0.0003999,120]
[404911968,1770672645303,-230.23096,0.0003999,120]
[404911969,1770672645313,-151.0,0.0003999,120]
[404911971,1770672645322,-230.23096,0.0003999,120]
[404911973,1770672645331,-230.23096,0.0003999,120]
[404911976,1770672645344,-267.290453,0.0003999,120]
[404911978,1770672645353,-267.290453,0.0003999,120]
[404911980,1770672645363,-267.290453,0.0003999,120]
[404911982,1770672645372,-267.290453,0.0003999,120]
[404911984,1770672645381,-267.290453,0.0003999,120]
[404911986,1770672645391,-267.290453,0.0003999,120]
[404911988,1770672645400,-267.290453,0.0003999,120]
[404911990,1770672645412,-267.290453,0.0003999,120]
[404911992,1770672645421,-267.290453,0.0003999,120]
[404911994,1770672645431,-267.290453,0.0003999,120]
[404911996,1770672645440,-267.290453,0.0003999,120]
[404911998,1770672645450,-267.290453,0.0003999,120]
[404912000,1770672645459,-151.0,0.0003999,120]
[404912002,1770672645469,-151.0,0.0003999,120]
[404912004,1770672645479,-193.932271,0.0003999,120]
[404912006,1770672645489,-257.294043,0.0003999,28]
[404912008,1770672645498,-257.294043,0.0003999,28]
[404912010,1770672645507,-257.294043,0.0003999,28]
[404912012,1770672645517,-257.294043,0.0003999,28]
[404912014,1770672645526,-257.294043,0.0003999,28]
[404912016,1770672645536,-257.294043,0.0003999,28]
[404912018,1770672645545,-257.294043,0.0003999,28]
[404912020,1770672645554,-257.294043,0.0003999,28]
[404912022,1770672645563,-257.294043,0.0003999,28]
[404912024,1770672645572,-257.294043,0.0003999,28]
[404912025,1770672645582,-257.294043,0.0003999,28]
[404912027,1770672645592,-257.294043,0.0003999,28]
[404912029,1770672645601,-664.64,0.0003999,3]
[404912031,1770672645610,-673.74928479,0.0003999,3]
[404912035,1770672645643,-130.67332031,0.0003999,3]
[404912113,1770672646282,-7461.97750276,0.0003999,3]
[404912330,1770672724975,500.0,0.00013273,2]
[404912338,1770672839953,-1000.0,0.00038188,30]
[404912339,1770672845827,500.0,0.00013699,2]
[404912340,1770672904439,503.18327958,0.00013699,2]
[404912341,1770672910679,500.0,0.00013273,2]
[404912343,1770672972261,-175.0,0.00025631,2]
[404912344,1770672981837,300.0,0.00013673,2]
[404912345,1770672985497,500.0,0.00013699,2]
[404912346,1770672985547,500.0,0.00014247,2]
[404912349,1770672989608,500.0,0.00013699,2]
[404912350,1770672990723,500.0,0.00013699,2]
[404912351,1770672993796,215.85310535,0.00025205,14]
[404912353,1770673029074,191.11703376,0.00013699,2]
[404912354,1770673035251,500.0,0.00013273,2]
[404912355,1770673035296,1000.0,0.00013821,2]
[404912356,1770673035352,1500.0,0.00014368,2]
[404912372,1770673211922,500.0,0.00013699,2]
[404912373,1770673211986,532.93019237,0.00014247,2]
[404912375,1770673221387,500.0,0.00013699,2]
[404912376,1770673221679,500.0,0.00013699,2]
[404912377,1770673222081,500.0,0.00014795,2]
[404912378,1770673222856,1000.0,0.00014247,2]
[404912379,1770673230768,500.0,0.00013273,2]
[404912380,1770673230824,1000.0,0.00013821,2]
[404912381,1770673232073,500.0,0.00013699,2]
[404912383,1770673264973,500.0,0.00013273,2]
[404912385,1770673273537,500.0,0.00013273,2]
[404912386,1770673273592,500.0,0.00013821,2]
[404912387,1770673277383,509.02033208,0.00013699,2]
[404912388,1770673293756,500.0,0.00013273,2]
[404912389,1770673293821,501.78460481,0.00013821,2]
[404912395,1770673342090,500.0,0.00013699,2]
[404912409,1770673503728,500.0,0.00013699,2]
[404912411,1770673507083,500.0,0.00013273,2]
[404912412,1770673510721,500.0,0.00013699,2]
[404912413,1770673513524,500.0,0.00013699,2]
[404912414,1770673513577,1000.0,0.00014247,2]
[404912417,1770673517641,500.0,0.00013273,2]
[404912418,1770673517704,1000.0,0.00013821,2]
[404912419,1770673517751,443.842022,0.00014368,2]
[404912420,1770673525700,500.0,0.00013699,2]
[404912421,1770673566987,5000.0,0.000231,2]
[404912422,1770673588719,272.87,0.00025205,14]
[404912423,1770673590142,277.12604042,0.00013699,2]
[404912426,1770673624435,500.0,0.00014247,2]
[404912427,1770673624490,500.0,0.00013699,2]
[404912428,1770673628051,500.0,0.00027066,120]
[404912435,1770673683118,500.0,0.00013699,2]
[404912446,1770673700969,5000.0,0.000231,2]
[404912449,1770673709087,3642.01347538,0.000231,2]
[404912459,1770673723949,2298.32034557,0.000231,2]
[404912460,1770673732691,-300.0,0.00023472,2]
[404912461,1770673732719,-11800.26623848,0.00023473,2]
[404912462,1770673732745,-150.0,0.00023674,2]
[404912463,1770673732770,-1200.0,0.00024275,2]
[404912464,1770673732796,-210.43385801,0.00024275,2]
[404912465,1770673732822,-300.0,0.0002452,2]
[404912466,1770673732847,-816.0,0.0002487,2]
[404912467,1770673732872,-4727.13,0.00025205,14]
[404912468,1770673732897,-420.0,0.00025468,2]
[404912469,1770673732923,-177.0,0.00025674,2]
[404912470,1770673732949,-500.0,0.00026209,2]
[404912471,1770673732975,-500.0,0.00026209,2]
[404912472,1770673733001,-500.0,0.00026209,2]
[404912473,1770673733026,-303.00636104,0.00026209,2]
[404912474,1770673733052,-314.39583269,0.00026209,2]
[404912475,1770673733078,-500.0,0.00026209,2]
[404912476,1770673733104,-500.0,0.00026209,2]
[404912477,1770673733130,-500.0,0.00026209,2]
[404912478,1770673733159,-500.0,0.00026209,2]
[404912479,1770673733185,-500.0,0.00026209,2]
[404912480,1770673733321,-500.0,0.00026209,2]
[404912481,1770673733348,-211.16129959,0.00026209,2]
[404912482,1770673733375,-202.43553575,0.00026209,2]
[404912483,1770673733402,-342.27863882,0.00026209,2]
[404912484,1770673733429,-500.0,0.00026209,2]
[404912485,1770673733455,-500.0,0.00026209,2]
[404912486,1770673733480,-500.0,0.00026209,2]
[404912487,1770673733506,-500.0,0.00026209,2]
[404912488,1770673733531,-500.0,0.00026209,2]
[404912489,1770673733557,-17095.68223223,0.00026209,2]
[404912490,1770673733582,-151.0,0.0002621,2]
[404912491,1770673733610,-151.0,0.0002621,2]
[404912492,1770673733638,-151.0,0.0002621,2]
[404912493,1770673733665,-151.0,0.0002621,2]
[404912494,1770673733695,-151.0,0.0002621,2]
[404912495,1770673733720,-151.0,0.0002621,2]
[404912496,1770673733746,-151.0,0.00026211,2]
[404912497,1770673733773,-213.922536,0.00026211,2]
[404912498,1770673733799,-151.0,0.00026211,2]
[404912499,1770673733825,-151.0,0.00026211,2]
[404912500,1770673733851,-246.352341,0.00026211,2]
[404912501,1770673733877,-1680.0,0.00026438,2]
[404912502,1770673733901,-365.0,0.00026576,2]
[404912503,1770673733926,-500.0,0.00027066,2]
[404912504,1770673733952,-200.0,0.00027397,2]
[404912505,1770673733984,-180.0,0.00027633,2]
[404912506,1770673734011,-204.0,0.00027674,2]
[404912507,1770673734039,-404.3628281,0.00028573,2]
[404912508,1770673734067,-1115.97434752,0.00028674,2]
[404912509,1770673734094,-1796.0,0.00028793,2]
[404912510,1770673734120,-231.0,0.00029674,2]
[404912511,1770673734145,-151.0,0.00029674,7]
[404912512,1770673734174,-151.0,0.00029674,7]
[404912513,1770673734200,-320.62696194,0.00029844,2]
[404912514,1770673734229,-258.0,0.00031674,2]
[404912515,1770673734255,-250.0,0.00032223,2]
[404912516,1770673734282,-285.0,0.00033674,120]
[404912517,1770673734308,-200.0,0.00035664,2]
[404912518,1770673734334,-312.0,0.00035674,120]
[404912519,1770673734362,-339.0,0.00037674,120]
[404912520,1770673734387,-151.0,0.00038356,120]
[404912521,1770673734411,-151.0,0.00038356,120]
[404912522,1770673734437,-151.0,0.00038356,120]
[404912523,1770673734464,-151.0,0.00038356,120]
[404912524,1770673734492,-151.0,0.00038356,7]
[404912525,1770673734516,-187.476341,0.00038356,7]
[404912526,1770673734540,-214.040956,0.00038356,120]
[404912527,1770673734564,-151.0,0.00038356,120]
[404912528,1770673734589,-151.0,0.00038356,120]
[404912529,1770673734616,-151.0,0.00038356,120]
[404912530,1770673734639,-151.0,0.00038356,120]
[404912531,1770673734664,-151.0,0.00038356,120]
[404912532,1770673734691,-151.0,0.00038356,120]
[404912533,1770673734716,-151.0,0.00038356,120]
[404912534,1770673734740,-180.847674,0.00038356,120]
[404912535,1770673734765,-151.0,0.00038356,120]
[404912536,1770673734789,-151.0,0.00038356,120]
[404912537,1770673734814,-151.0,0.00038356,120]
[404912538,1770673734839,-151.0,0.00038356,120]
[404912539,1770673734866,-252.601608,0.00038356,120]
[404912540,1770673734891,-151.0,0.00038356,120]
[404912541,1770673734917,-151.0,0.00038356,120]
[404912543,1770673734942,-151.0,0.00038356,120]
[404912544,1770673734967,-151.0,0.00038356,120]
[404912545,1770673734992,-151.0,0.00038356,120]
[404912546,1770673735019,-151.0,0.00038356,120]
[404912547,1770673735044,-151.0,0.00038356,120]
[404912549,1770673735069,-151.0,0.00038356,120]
[404912551,1770673735096,-151.0,0.00038356,120]
[404912552,1770673735123,-151.0,0.00038356,120]
[404912553,1770673735148,-151.0,0.00038356,120]
[404912554,1770673735174,-151.0,0.00038356,120]
[404912555,1770673735199,-151.0,0.00038356,120]
[404912556,1770673735223,-151.0,0.00038356,120]
[404912557,1770673735249,-151.0,0.00038356,120]
[404912558,1770673735273,-175.323618,0.00038356,120]
[404912559,1770673735299,-151.0,0.00038356,120]
[404912560,1770673735325,-151.0,0.00038356,120]
[404912561,1770673735350,-151.0,0.00038356,120]
[404912562,1770673735507,-151.0,0.00038356,120]
[404912563,1770673735535,-151.0,0.00038356,120]
[404912564,1770673735562,-233.0867,0.00038356,120]
[404912565,1770673735587,-331.00120454,0.00038546,2]
[404912566,1770673735614,-151.0,0.00038546,120]
[404912567,1770673735639,-151.0,0.00038546,120]
[404912568,1770673735666,-258.912108,0.00038546,120]
[404912569,1770673735693,-151.0,0.00038546,120]
[404912570,1770673735718,-151.0,0.00038546,120]
[404912571,1770673735744,-151.0,0.00038546,28]
[404912572,1770673735769,-151.0,0.00038546,28]
[404912573,1770673735794,-401.0,0.00038949,11]
[404912574,1770673735819,-214.04742053,0.00038989,15]
[404912575,1770673735844,-19071.82755655,0.0003899,2]
[404912576,1770673735872,-151.0,0.0003899,120]
[404912577,1770673735897,-151.0,0.0003899,120]
[404912578,1770673735923,-366.0,0.00039674,120]
[404912579,1770673735949,-251.85695541,0.00039858,5]
[404912580,1770673735975,-168.68059639,0.00039858,5]
[404912581,1770673736004,-3210.29471061,0.000399,2]
[404912582,1770673736030,-250.0,0.000399,10]
[404912583,1770673736055,-268.48,0.0003998,10]
[404912584,1770673736080,-426.65,0.0003998,10]
[404912585,1770673736105,-151.0,0.0003998,120]
[404912586,1770673736130,-961.07599157,0.0003998,3]
[404912587,1770673736155,-511.98,0.00039989,10]
[404912588,1770673736180,-500.0,0.00039989,120]
[404912589,1770673736203,-516.16,0.00039989,30]
[404912590,1770673736228,-151.33965638,0.00039989,28]
[404912591,1770673736252,-500.0,0.00039989,2]
[404912592,1770673736276,-3231.5817936,0.0003999,2]
[404912593,1770673736301,-553.87,0.0003999,3]
[404912594,1770673736326,-18260.4438398,0.0003999,3]
[404912595,1770673736351,-1251.24691956,0.0003999,3]
[404912596,1770673736375,-276.93,0.0003999,3]
[404912597,1770673736403,-830.82,0.0003999,3]
[404912598,1770673736428,-500.0,0.00039997,2]
[404912599,1770673736452,-151.0,0.00039998,120]
[404912600,1770673736478,-500.0,0.00039999,2]
[404912601,1770673736503,-500.0,0.00039999,2]
[404912602,1770673736527,-500.0,0.00039999,2]
[404912603,1770673736551,-1643035.69864336,0.0004,120]
[404912604,1770673736577,-181476.41786389,0.0004,120]
[404912605,1770673736602,-1000.0,0.0004,30]
[404912606,1770673736632,-210.05838591,0.0004,2]
[404912607,1770673736666,-2015.07,0.0004,2]
[404912608,1770673736699,-898.32,0.0004,14]
[404912609,1770673736728,-52078.83044573,0.0004,120]
[404912616,1770673789111,5000.0,0.00030137,120]
[404912618,1770673798238,1114.87049335,0.00031849,2]
[404912623,1770673811639,1027.52162127,0.00024953,2]
[404912624,1770673820469,412.64967482,0.00013699,2]
[404912625,1770673821029,-1600.0,0.00039598,5]
[404912626,1770673821054,-300.0,0.00039599,5]
[404912627,1770673821078,-400.0,0.00039599,5]
[404912628,1770673821102,-300.0,0.00039599,5]
[404912629,1770673821126,-5000.0,0.000396,2]
[404912630,1770673821150,-1000.0,0.000396,2]
[404912631,1770673821174,-35191.25100368,0.0004,120]
[404912632,1770673821198,-1041.66666667,0.0004,120]
[404912633,1770673821222,-151.0,0.0004,120]
[404912634,1770673821343,-151.0,0.0004,120]
[404912635,1770673821370,-151.0,0.0004,120]
[404912636,1770673821397,-184.24657,0.0004,120]
[404912637,1770673821421,-373.296997,0.0004,10]
[404912638,1770673821445,-151.0,0.0004,13]
[404912639,1770673821470,-151.0,0.0004,20]
[404912640,1770673821495,-151.0,0.0004,16]
[404912641,1770673821519,-563.0,0.0004,2]
[404912642,1770673821543,-172.98,0.0004,120]
[404912643,1770673821570,-4206.95764753,0.0004007,100]
[404912644,1770673821595,-1000.0,0.000403,30]
[404912645,1770673821620,-1000.0,0.000406,30]
[404912646,1770673821652,-600.0,0.00040799,60]
[404912647,1770673821679,-1000.0,0.000409,30]
[404912648,1770673821706,-1000.0,0.00041,120]
[404912649,1770673821731,-171.46,0.00041086,10]
[404912650,1770673821756,-377.25,0.00041086,10]
[404912651,1770673821782,-314.38,0.00041086,10]
[404912652,1770673821808,-363.10431927,0.00041095,120]
[404912653,1770673821832,-160.0,0.00041096,60]
[404912654,1770673821857,-50000.0,0.00041096,120]
[404912655,1770673821884,-552.02,0.00041096,120]
[404912656,1770673821909,-151.0,0.00041096,120]
[404912657,1770673821934,-151.0,0.00041096,120]
[404912658,1770673821959,-151.0,0.00041096,120]
[404912659,1770673821983,-151.0,0.00041096,120]
[404912660,1770673822007,-151.0,0.00041096,120]
[404912661,1770673822031,-151.0,0.00041096,120]
[404912662,1770673822054,-151.0,0.00041096,120]
[404912663,1770673822078,-151.0,0.00041096,120]
[404912664,1770673822102,-151.0,0.00041096,120]
[404912665,1770673822126,-151.0,0.00041096,120]
[404912666,1770673822149,-151.0,0.00041096,120]
[404912667,1770673822172,-285.159533,0.00041096,120]
[404912668,1770673822197,-151.0,0.00041096,120]
[404912669,1770673822220,-151.0,0.00041096,120]
[404912670,1770673822244,-151.0,0.00041096,120]
[404912671,1770673822269,-151.0,0.00041096,120]
[404912672,1770673822295,-151.0,0.00041096,120]
[404912673,1770673822319,-151.0,0.00041096,120]
[404912674,1770673822343,-301.043509,0.00041096,120]
[404912675,1770673822367,-871.87,0.00041096,120]
[404912676,1770673822394,-1393.28,0.000411,120]
[404912677,1770673822417,-52481.38746968,0.00041137,7]
[404912678,1770673822443,-444.17131717,0.00041137,7]
[404912679,1770673822468,-741.14389025,0.00041137,7]
[404912680,1770673822493,-1000.0,0.000412,30]
[404912681,1770673822519,-1107.74,0.0004136,3]
[404912682,1770673822543,-553.86,0.0004136,3]
[404912683,1770673822570,-1000.0,0.000415,30]
[404912684,1770673822594,-393.0,0.00041674,120]
[404912685,1770673822618,-1000.0,0.000418,30]
[404912686,1770673822647,-273.67,0.0004199,30]
[404912687,1770673822671,-228.06,0.0004199,30]
[404912688,1770673822696,-328.19259471,0.00042,120]
[404912689,1770673822721,-1000.0,0.000421,30]
[404912690,1770673822746,-1041.66666667,0.000421,30]
[404912691,1770673822770,-560.0,0.00042257,5]
[404912692,1770673822796,-1000.0,0.000424,30]
[404912693,1770673822821,-741.63626124,0.000424,7]
[404912694,1770673822846,-898.0,0.00042412,5]
[404912695,1770673822870,-20190.66455993,0.000427,120]
[404912696,1770673822895,-1000.0,0.000427,30]
[404912697,1770673822921,-1813.56,0.000427,2]
[404912698,1770673822944,-238.0752,0.000428,90]
[404912699,1770673822968,-300.82773,0.000429,120]
[404912700,1770673822992,-1000.0,0.00043,30]
[404912701,1770673823017,-898.32,0.00043,14]
[404912702,1770673823042,-1000.0,0.00043,120]
[404912703,1770673823066,-2441.5901,0.0004322,7]
[404912704,1770673823090,-1000.0,0.000433,30]
[404912705,1770673823116,-937.67,0.000433,120]
[404912706,1770673823141,-52481.38746968,0.00043492,7]
[404912707,1770673823166,-444.17131717,0.00043492,7]
[404912708,1770673823191,-13387.51849354,0.00043494,2]
[404912709,1770673823216,-1000.0,0.000436,30]
[404912710,1770673823242,-420.0,0.00043674,120]
[404912711,1770673823268,-1127.23,0.000437,120]
[404912712,1770673823296,-937.67,0.00043783,120]
[404912713,1770673823325,-467.06004958,0.000438,30]
[404912714,1770673823351,-1000.0,0.000439,30]
[404912715,1770673823377,-250.0,0.000439,30]
[404912716,1770673823402,-250.0,0.000439,30]
[404912717,1770673823426,-250.0,0.000439,30]
[404912718,1770673823451,-250.0,0.000439,30]
[404912719,1770673823475,-250.0,0.000439,30]
[404912720,1770673823497,-250.0,0.000439,30]
[404912721,1770673823522,-250.0,0.000439,30]
[404912722,1770673823546,-250.0,0.000439,30]
[404912723,1770673823570,-222.3,0.000439,30]
[404912724,1770673823693,-2000.0,0.00043905,2]
[404912725,1770673823728,-309.94,0.00043931,10]
[404912726,1770673823757,-151.0,0.00043933,120]
[404912727,1770673823787,-151.0,0.00043933,120]
[404912728,1770673823831,-151.0,0.00043933,120]
[404912729,1770673823874,-187.131378,0.00043957,2]
[404912730,1770673823902,-1000.0,0.000442,30]
[404912731,1770673823931,-937.67,0.00044266,120]
[404912732,1770673823958,-18050.71,0.000444,120]
[404912733,1770673823986,-1000.0,0.000445,30]
[404912734,1770673824016,-168.0,0.00044519,2]
[404912735,1770673824044,-509.5427,0.00044519,2]
[404912736,1770673824071,-337.5473,0.00044519,3]
[404912737,1770673824100,-168.0,0.00044579,2]
[404912738,1770673824128,-937.67,0.00044749,120]
[404912739,1770673824157,-168.0,0.0004478,2]
[404912740,1770673824189,-1813.56,0.000448,2]
[404912741,1770673824220,-720.0,0.00044879,60]
[404912742,1770673824247,-966.26448897,0.000449,120]
[404912744,1770673824272,-470.96652693,0.00045,120]
[404912745,1770673824297,-884.2837343,0.00045,20]
[404912746,1770673824335,-6587.80829722,0.00045,2]
[404912747,1770673824362,-599.82425668,0.00045,120]
[404912748,1770673824387,-200.0,0.00045,120]
[404912750,1770673824412,-1041.66666667,0.00045206,2]
[404912751,1770673824438,-937.67,0.00045232,120]
[404912752,1770673824464,-741.97989042,0.00045255,2]
[404912753,1770673824488,-160.0,0.00045255,2]
[404912755,1770673824516,-168.0,0.00045309,2]
[404912756,1770673824541,-233.08,0.0004538,120]
[404912757,1770673824571,-447.0,0.00045674,120]
[404912758,1770673824597,-937.67,0.00045715,120]
[404912759,1770673824624,-269.0,0.0004596,60]
[404912760,1770673824654,-1224.0,0.0004596,60]
[404912761,1770673824679,-6250.0,0.00045962,120]
[404912762,1770673824705,-898.32,0.00046,14]
[404912763,1770673824730,-160.8909836,0.00046193,2]
[404912764,1770673824756,-937.67,0.00046198,120]
[404912765,1770673824781,-882.18,0.000464,120]
[404912766,1770673824810,-168.0,0.00046591,2]
[404912767,1770673824836,-937.67,0.00046681,120]
[404912768,1770673824861,-1000.0,0.00047,120]
[404912769,1770673824888,-937.67,0.00047164,120]
[404912770,1770673824914,-937.67,0.00047647,120]
[404912771,1770673824939,-510.53633331,0.00048,120]
[404912772,1770673824963,-152.13290659,0.00048,120]
[404912773,1770673824986,-5000.0,0.00048,60]
[404912774,1770673825011,-52481.38746968,0.00048112,30]
[404912775,1770673825036,-52481.38746968,0.00048112,30]
[404912776,1770673825060,-444.17131717,0.00048112,30]
[404912777,1770673825086,-444.17131717,0.00048112,30]
[404912778,1770673825112,-937.67,0.0004813,120]
[404912779,1770673825137,-187.131378,0.00048143,2]
[404912780,1770673825163,-344.0,0.00048167,35]
[404912781,1770673825190,-310.0,0.00048167,35]
[404912782,1770673825215,-320.0,0.00048167,35]
[404912783,1770673825242,-338.0,0.00048167,35]
[404912784,1770673825269,-250.0,0.00048167,35]
[404912785,1770673825297,-324.0,0.00048167,35]
[404912786,1770673825331,-206.0,0.00048249,35]
[404912787,1770673825358,-186.0,0.00048249,35]
[404912788,1770673825386,-192.0,0.00048249,35]
[404912789,1770673825413,-202.0,0.00048249,35]
[404912790,1770673825439,-344.0,0.00048249,35]
[404912791,1770673825466,-229.0,0.00048331,35]
[404912792,1770673825492,-712.0,0.00048536,31]
[404912793,1770673825518,-1813.56,0.000486,2]
[404912794,1770673825543,-937.67,0.00048612,120]
[404912795,1770673825570,-245.0,0.0004865,77]
[404912796,1770673825596,-1000.0,0.00048767,7]
[404912797,1770673825621,-207.34145021,0.000488,2]
[404912798,1770673825649,-210.04,0.00049,120]
[404912799,1770673825677,-317.48331846,0.00049,15]
[404912800,1770673825703,-3659.37691531,0.00049,120]
[404912801,1770673825729,-1000.0,0.00049,120]
[404912802,1770673825755,-937.67,0.00049095,120]
[404912803,1770673825783,-151.0,0.00049205,100]
[404912804,1770673825810,-300.0,0.00049315,2]
[404912805,1770673825838,-864.0,0.00049367,120]
[404912806,1770673825867,-2163.1248565,0.00049373,2]
[404912807,1770673825893,-401.0,0.00049496,31]
[404912808,1770673825920,-937.67,0.00049578,120]
[404912809,1770673825946,-301.13697095,0.00049589,2]
[404912810,1770673825971,-207.00422268,0.00049619,90]
[404912811,1770673825998,-898.32,0.000497,14]
[404912812,1770673826023,-179.5820701,0.00049999,120]
[404912813,1770673826048,-499.44398122,0.00049999,120]
[404912814,1770673826076,-523.46236662,0.00049999,31]
[404912815,1770673826102,-13577.5155977,0.0005,120]
[404912816,1770673826127,-5006.25195448,0.0005,120]
[404912817,1770673826154,-311485.07737304,0.0005,120]
[404912818,1770673826267,-4316.50644202,0.0005,120]
[404912819,1770673826296,-158.0,0.0005,120]
[404912820,1770673826325,-195.0,0.0005,120]